bitfinex/quotes_ETHUSD_20250920
["timestamp","ask_amount","ask_price","bid_price","bid_amount"]
[1758396818418,0.002,4490.4,4490.3,8.52908371]
[1758396821118,0.002,4490.4,4490.3,8.29128371]
[1758396821310,0.002,4490.4,4490.3,8.52908371]
[1758396823927,0.002,4490.4,4490.3,8.29128371]
[1758396825931,0.002,4490.4,4490.3,8.52618371]
[1758396834756,0.002,4490.4,4490.3,8.29128371]
[1758396835772,0.002,4490.4,4490.3,8.52618371]
[1758396836946,0.002,4490.4,4490.3,8.29128371]
[1758396844592,0.002,4490.4,4490.3,6.71702269]
[1758396844887,0.1802,4490.4,4490.3,6.71602269]
[1758396845799,0.1802,4490.4,4490.3,4.489]
[1758396846093,0.1802,4490.4,4490.3,0.001]
[1758396846596,0.1802,4490.4,4490.3,0.793]
[1758396847102,0.1802,4490.4,4490.3,0.001]
[1758396848285,0.43892248,4490.4,4490.3,0.001]
[1758396851883,2.66589557,4490.4,4490.3,0.001]
[1758396854322,0.43892248,4490.4,4490.3,0.001]
[1758396856780,2.66589557,4490.4,4490.3,0.001]
[1758396858114,0.43892248,4490.4,4490.3,0.001]
[1758396858734,7.13492248,4490.4,4490.3,0.001]
[1758396859898,9.36189557,4490.4,4490.3,0.001]
[1758396860925,7.13492248,4490.4,4490.3,0.001]
[1758396862719,6.95672248,4490.4,4490.3,0.001]
[1758396863620,9.18369557,4490.4,4490.3,0.001]
[1758396865126,9.36189557,4490.4,4490.3,0.001]
[1758396869695,9.18369557,4490.4,4490.3,0.001]
[1758396871935,9.36189557,4490.4,4490.3,0.001]
[1758396873509,9.18369557,4490.4,4490.3,0.001]
[1758396877523,6.95672248,4490.4,4490.3,0.001]
[1758396878341,9.18369557,4490.4,4490.3,0.001]
[1758396878945,6.95672248,4490.4,4490.3,0.001]
[1758396879352,9.18369557,4490.4,4490.3,0.001]
[1758396880155,6.95672248,4490.4,4490.3,0.001]
[1758396880566,9.18369557,4490.4,4490.3,0.001]
[1758396880859,6.95672248,4490.4,4490.3,0.001]
[1758396881044,9.18369557,4490.4,4490.3,0.001]
[1758396881892,6.95672248,4490.4,4490.3,0.001]
[1758396883394,9.18369557,4490.4,4490.3,0.001]
[1758396885778,5.48769557,4490.4,4490.3,0.001]
[1758396886075,9.18369557,4490.4,4490.3,0.001]
[1758396888401,9.71683387,4490.4,4490.3,0.001]
[1758396889482,9.53863387,4490.4,4490.3,0.001]
[1758396904031,9.74766032,4490.4,4490.3,0.001]
[1758396904730,10.27143462,4490.4,4490.3,0.001]
[1758396904934,9.92586032,4490.4,4490.3,0.001]
[1758396905116,10.59100908,4490.4,4490.3,0.001]
[1758396906346,10.59087498,4490.4,4490.3,0.001]
[1758396908832,10.41267498,4490.4,4490.3,0.001]
[1758396918348,10.41236615,4490.4,4490.3,0.001]
[1758396921937,10.59056615,4490.4,4490.3,0.001]
[1758396922140,10.91405712,4490.4,4490.3,0.001]
[1758396928858,10.73585712,4490.4,4490.3,0.001]
[1758396946687,2.22707229,4490.2,4490.1,0.01]
[1758396946885,2.22717149,4490.0,4489.9,0.001]
[1758396947091,9.78643428,4490.0,4489.9,0.001]
[1758396947393,9.96463428,4490.0,4489.9,0.001]
[1758396948101,10.05395817,4490.0,4489.9,0.001]
[1758396948279,10.97782941,4490.0,4489.9,0.001]
[1758396950281,11.32707862,4490.0,4489.9,0.001]
[1758396951179,11.14887862,4490.0,4489.9,0.001]
[1758396955588,10.79962941,4490.0,4489.9,0.001]
[1758396956817,5.22722109,4489.9,4489.8,0.001]
[1758396957012,6.53557898,4489.9,4489.8,0.001]
[1758396957224,6.85906995,4489.9,4489.8,0.001]
[1758396957790,7.52421871,4489.9,4489.8,0.001]
[1758396960293,7.87346989,4489.9,4489.8,0.001]
[1758396962240,2.2272707,4489.8,4489.3,1e-08]
[1758396962424,2.2272707,4489.8,4488.9,0.001]
[1758396962425,5.89271713,4489.2,4488.9,0.001]
[1758396962604,10.12948895,4489.2,4488.9,0.001]
[1758396963136,10.12948895,4489.2,4489.1,0.2485]
[1758396967434,6.43348895,4489.2,4489.1,0.2485]
[1758396967646,10.12948895,4489.2,4489.1,0.2485]
[1758396968006,6.43348895,4489.2,4489.1,0.2485]
[1758396968344,10.12948895,4489.2,4489.1,0.2485]
[1758396968867,6.58971713,4489.2,4489.1,0.2485]
[1758396969348,7.36214875,4489.2,4489.1,0.2485]
[1758396969708,9.58971713,4489.2,4489.1,0.2485]
[1758396972613,7.36214875,4489.2,4489.1,0.2485]
[1758396973148,9.58971713,4489.2,4489.1,0.2485]
[1758396975335,9.79844667,4489.2,4489.1,0.2485]
[1758396977664,9.79844667,4489.2,4489.1,0.2495]
[1758396989369,7.36214875,4489.2,4489.1,0.2495]
[1758396989543,3.66514875,4489.2,4489.1,1.0415]
[1758396989744,4.36014875,4489.2,4489.1,1.0415]
[1758396989944,4.36014875,4489.2,4489.1,1.37084809]
[1758396990150,7.36014875,4489.2,4489.1,1.37084809]
[1758396992137,6.695,4489.2,4489.1,1.37084809]
[1758397000278,6.695,4489.2,4489.1,1.0415]
[1758397001013,6.695,4489.2,4489.1,0.803]
[1758397001314,6.695,4489.2,4489.1,1.0406]
[1758397005120,6.695,4489.2,4489.1,0.803]
[1758397005701,6.8732,4489.2,4489.1,0.803]
[1758397006022,6.695,4489.2,4489.1,0.803]
[1758397008630,6.695,4489.2,4489.1,0.011]
[1758397008923,10.11158997,4489.2,4489.1,0.011]
[1758397010522,7.37363329,4489.2,4489.1,0.011]
[1758397010708,6.695,4489.2,4489.1,0.011]
[1758397013431,8.92256838,4489.2,4489.1,0.011]
[1758397013744,6.695,4489.2,4489.1,0.011]
[1758397021252,9.13157599,4489.2,4489.1,0.011]
[1758397021453,8.92256838,4489.2,4489.1,0.011]
[1758397022518,6.695,4489.2,4489.1,0.011]
[1758397030252,8.92256838,4489.2,4489.1,0.011]
[1758397030669,9.1315824,4489.2,4489.1,0.011]
[1758397033158,9.4637707,4489.2,4489.1,0.011]
[1758397033721,9.6419707,4489.2,4489.1,0.011]
[1758397035415,9.4637707,4489.2,4489.1,0.011]
[1758397037176,9.4637707,4489.2,4489.1,0.2519]
[1758397040680,9.4637707,4489.2,4489.1,0.011]
[1758397040904,9.46268109,4489.2,4489.1,0.011]
[1758397041579,5.76868109,4489.2,4489.1,0.011]
[1758397041782,9.46268109,4489.2,4489.1,0.011]
[1758397043688,10.30602984,4489.2,4489.1,0.011]
[1758397049713,10.12782984,4489.2,4489.1,0.011]
[1758397049866,10.30602984,4489.2,4489.1,0.011]
[1758397059743,10.12782984,4489.2,4489.1,0.011]
[1758397068958,10.97879867,4489.2,4489.1,0.011]
[1758397070354,10.80059867,4489.2,4489.1,0.011]
[1758397072026,10.4771077,4489.2,4489.1,0.2538]
[1758397073023,10.4771077,4489.2,4489.1,0.011]
[1758397074031,10.80059867,4489.2,4489.1,0.011]
[1758397074243,10.97879867,4489.2,4489.1,0.011]
[1758397074562,10.80059867,4489.2,4489.1,0.011]
[1758397075628,10.45132081,4489.2,4489.1,0.011]
[1758397079082,10.80060084,4489.2,4489.1,0.011]
[1758397081928,10.47710987,4489.2,4489.1,0.2538]
[1758397083154,10.47710987,4489.2,4489.1,0.011]
[1758397085132,2.22766763,4489.0,4488.9,0.001]
[1758397085476,3.3321883,4488.9,4488.6,0.001]
[1758397085627,11.34982212,4488.7,4488.6,0.001]
[1758397085831,12.2144258,4488.7,4488.6,0.001]
[1758397086053,12.3926258,4488.7,4488.6,0.001]
[1758397086336,13.05777455,4488.7,4488.6,0.001]
[1758397089242,2.22813177,4488.1,4487.3,0.001]
[1758397089446,2.22846191,4487.4,4487.3,0.001]
[1758397089766,9.48957462,4487.4,4487.3,0.001]
[1758397094167,10.15472337,4487.4,4487.3,0.001]
[1758397097808,15.10730305,4487.4,4487.3,0.001]
[1758397098110,10.15272337,4487.4,4487.3,0.2448]
[1758397098894,9.61161066,4487.4,4487.3,0.2448]
[1758397101204,9.8195194,4487.4,4487.3,0.2448]
[1758397101720,9.61161066,4487.4,4487.3,0.2448]
[1758397103100,9.81956237,4487.4,4487.3,0.2448]
[1758397116738,9.81956237,4487.4,4487.3,0.001]
[1758397119847,9.81956237,4487.4,4487.3,0.2448]
[1758397122833,9.81956237,4487.4,4487.3,0.001]
[1758397128943,9.81956237,4487.4,4487.3,0.2418]
[1758397129883,9.81956237,4487.4,4487.3,0.001]
[1758397134274,2.22856124,4487.2,4487.1,0.24391479]
[1758397134465,6.14551295,4487.2,4487.1,0.00311479]
[1758397134640,9.14551295,4487.2,4487.1,0.00311479]
[1758397135186,9.14551295,4487.2,4487.1,0.24391479]
[1758397136378,9.14551295,4487.2,4487.1,0.00311479]
[1758397136884,9.14551295,4487.2,4487.1,0.24391479]
[1758397139556,2.1688,4487.3,4487.1,0.24391479]
[1758397139557,1.928,4487.3,4487.2,0.792]
[1758397139759,3.437,4487.3,4487.2,1.65393506]
[1758397139960,3.437,4487.3,4487.2,3.8824963]
[1758397140800,1.928,4488.0,4487.5,0.792]
[1758397140975,3.91814546,4487.9,4487.6,0.02228362]
[1758397141177,6.709,4487.9,4487.6,0.26308362]
[1758397142603,6.709,4487.9,4487.6,0.02228362]
[1758397142907,6.709,4487.9,4487.3,0.792]
[1758397142908,6.709,4487.9,4487.7,0.2408]
[1758397143074,6.709,4487.9,4487.8,0.2408]
[1758397144575,6.709,4487.9,4487.5,0.792]
[1758397145072,6.709,4487.9,4487.4,0.02228461]
[1758397145272,6.709,4487.9,4487.5,0.2359]
[1758397145503,6.709,4487.9,4487.4,0.02228461]
[1758397145708,6.709,4487.9,4487.6,0.2359]
[1758397149815,6.709,4487.9,4487.5,2.22840868]
[1758397149991,6.709,4487.9,4487.6,0.25818362]
[1758397150393,6.709,4487.9,4487.7,0.2359]
[1758397150794,6.709,4487.9,4487.6,0.02228362]
[1758397150993,6.709,4487.9,4487.6,0.25818362]
[1758397151516,6.709,4487.9,4487.7,0.2359]
[1758397152532,6.709,4487.9,4487.6,0.02228362]
[1758397152735,6.709,4487.9,4487.5,0.792]
[1758397153040,6.709,4487.9,4487.5,1.0279]
[1758397155107,8.93721886,4487.9,4487.5,1.0279]
[1758397155307,8.93721886,4487.9,4487.3,0.001]
[1758397156104,6.709,4487.9,4487.3,0.001]
[1758397156600,8.93722659,4487.9,4487.3,0.001]
[1758397156800,2.22827027,4487.8,4487.3,0.001]
[1758397157005,3.0,4487.6,4487.3,0.001]
[1758397157204,3.0,4487.4,4487.3,0.001]
[1758397157959,3.1782,4487.4,4487.3,0.001]
[1758397158118,3.5103883,4487.4,4487.3,0.001]
[1758397158527,5.73885021,4487.4,4487.3,0.001]
[1758397164374,5.74085021,4487.4,4487.3,0.001]
[1758397165674,5.9495817,4487.4,4487.3,0.001]
[1758397168342,6.61473045,4487.4,4487.3,0.001]
[1758397170172,6.43653045,4487.4,4487.3,0.001]
[1758397175279,6.61473045,4487.4,4487.3,0.001]
[1758397175759,6.43653045,4487.4,4487.3,0.001]
[1758397179298,6.22779896,4487.4,4487.3,0.001]
[1758397179600,6.43660856,4487.4,4487.3,0.001]
[1758397181806,8.36460856,4487.4,4487.3,0.001]
[1758397181979,8.54280856,4487.4,4487.3,0.001]
[1758397182693,8.36460856,4487.4,4487.3,0.001]
[1758397213731,8.36460856,4487.4,4487.3,0.2329]
[1758397215934,8.36460856,4487.4,4487.3,0.001]
[1758397222259,13.49434277,4487.4,4487.3,0.001]
[1758397222461,13.81783374,4487.4,4487.3,0.001]
[1758397225832,8.86629953,4487.4,4487.3,0.001]
[1758397226151,13.81783374,4487.4,4487.3,0.001]
[1758397226528,13.63963374,4487.4,4487.3,0.001]
[1758397226726,13.81783374,4487.4,4487.3,0.001]
[1758397230331,13.63963374,4487.4,4487.3,0.001]
[1758397230535,13.43082414,4487.4,4487.3,0.001]
[1758397230750,13.63976143,4487.4,4487.3,0.001]
[1758397234594,13.81796143,4487.4,4487.3,0.001]
[1758397234775,13.81796143,4487.4,4487.1,0.00411479]
[1758397234776,2.22856124,4487.2,4487.1,0.00411479]
[1758397234977,9.7921778,4487.2,4487.1,0.00411479]
[1758397235292,9.9703778,4487.2,4487.1,0.00411479]
[1758397235466,10.31982469,4487.2,4487.1,0.00411479]
[1758397235891,9.9703778,4487.2,4487.1,0.00411479]
[1758397236455,10.63552655,4487.2,4487.1,0.00411479]
[1758397237759,10.45732655,4487.2,4487.1,0.00411479]
[1758397238794,10.80676638,4487.2,4487.1,0.00411479]
[1758397241018,10.98496638,4487.2,4487.1,1e-08]
[1758397242116,10.80676638,4487.2,4487.1,1e-08]
[1758397242286,10.98496638,4487.2,4487.1,1e-08]
[1758397242486,10.63552655,4487.2,4487.1,1e-08]
[1758397244022,10.45732655,4487.2,4487.1,1e-08]
[1758397244824,2.22871024,4486.9,4486.8,0.001]
[1758397245016,9.46983583,4486.9,4486.8,0.234]
[1758397246623,14.42137004,4486.9,4486.8,0.234]
[1758397247122,14.53289122,4486.9,4486.8,0.234]
[1758397247502,15.19803997,4486.9,4486.8,0.234]
[1758397248710,9.80279628,4486.9,4486.8,0.234]
[1758397251025,9.80279628,4486.9,4486.8,0.184]
[1758397254560,6.10279628,4486.9,4486.8,0.184]
[1758397254763,9.80279628,4486.9,4486.8,0.184]
[1758397260577,7.57408604,4486.9,4486.8,0.184]
[1758397260777,9.80279628,4486.9,4486.8,0.184]
[1758397269700,9.80266493,4486.9,4486.8,0.184]
[1758397283725,9.80266493,4486.9,4486.6,0.001]
[1758397283726,2.22880959,4486.7,4486.6,0.2443]
[1758397284027,9.13661553,4486.7,4486.6,0.001]
[1758397284537,9.13661553,4486.7,4486.6,0.2443]
[1758397285720,9.136969,4486.7,4486.6,0.2443]
[1758397287531,6.90815941,4486.7,4486.6,0.2443]
[1758397288545,9.136969,4486.7,4486.6,0.001]
[1758397289226,9.136969,4486.7,4486.6,0.2443]
[1758397289649,9.13700662,4486.7,4486.6,0.2443]
[1758397289961,6.90819703,4486.7,4486.6,0.2443]
[1758397297868,6.90820247,4486.7,4486.6,0.2443]
[1758397300858,6.90820247,4486.7,4486.6,0.001]
[1758397305621,9.13701206,4486.7,4486.6,0.001]
[1758397307505,10.01829133,4486.7,4486.6,0.001]
[1758397307705,10.68344008,4486.7,4486.6,0.001]
[1758397308079,10.45784008,4486.7,4486.6,0.001]
[1758397308289,9.80216081,4486.7,4486.6,0.001]
[1758397308675,10.02776081,4486.7,4486.6,0.001]
[1758397309699,10.02774692,4486.7,4486.6,0.001]
[1758397310211,9.80214692,4486.7,4486.6,0.001]
[1758397313315,9.80214692,4486.7,4486.6,0.2441]
[1758397313316,7.57333733,4486.7,4486.6,0.2441]
[1758397320640,3.66514875,4486.7,4486.6,0.2441]
[1758397320828,7.36314875,4486.7,4486.6,0.2441]
[1758397321338,7.36314875,4486.7,4486.6,2.47295926]
[1758397321723,7.36314875,4486.7,4486.6,0.2441]
[1758397323639,7.36314875,4486.7,4486.6,0.26638859]
[1758397324509,7.36314875,4486.7,4486.6,0.2441]
[1758397327349,7.36314875,4486.7,4486.6,0.001]
[1758397329633,6.698,4486.7,4486.6,0.001]
[1758397338575,6.9252,4486.7,4486.6,0.001]
[1758397339133,6.698,4486.7,4486.6,0.001]
[1758397339640,6.90703369,4486.7,4486.6,0.001]
[1758397353170,6.90703369,4486.7,4486.6,0.2465]
[1758397360756,6.90716044,4486.7,4486.6,0.2465]
[1758397360961,3.20916044,4486.7,4486.6,0.26878859]
[1758397361262,6.90616044,4486.7,4486.6,0.26878859]
[1758397363136,6.697,4486.7,4486.6,0.26878859]
[1758397363639,6.697,4486.7,4486.6,2.49764785]
[1758397364161,6.697,4486.7,4486.6,0.26878859]
[1758397364760,6.697,4486.7,4486.6,2.49764785]
[1758397366988,6.697,4486.7,4486.6,0.26878859]
[1758397372109,6.697,4486.7,4486.6,0.2465]
[1758397376008,6.697,4486.7,4486.6,2.47535926]
[1758397376508,6.697,4486.7,4486.6,0.2465]
[1758397376807,6.697,4486.7,4486.6,0.26878859]
[1758397378308,6.697,4486.7,4486.6,3.28954785]
[1758397380628,3.9423,4486.8,4486.7,3.02080959]
[1758397380926,3.9423,4486.8,4486.7,3.26620959]
[1758397381115,3.698,4486.8,4486.7,3.26620959]
[1758397381721,0.002,4486.8,4486.7,3.26620959]
[1758397381916,0.002,4486.8,4486.7,3.28849768]
[1758397382118,0.002,4486.8,4486.7,4.39087845]
[1758397385736,0.002,4486.8,4486.6,2.78190975]
[1758397385737,0.2292,4486.8,4486.6,0.001]
[1758397385902,0.2272,4486.7,4486.6,0.793]
[1758397386103,0.2272,4486.7,4486.6,0.001]
[1758397387451,0.2272,4486.7,4486.6,0.793]
[1758397387640,3.698,4486.8,4486.6,0.001]
[1758397387821,0.2272,4486.7,4486.6,0.001]
[1758397390829,3.2272,4486.7,4486.6,0.001]
[1758397395278,3.0,4486.7,4486.6,0.001]
[1758397395953,3.2272,4486.7,4486.6,0.001]
[1758397396606,3.0,4486.7,4486.6,0.001]
[1758397414104,3.0,4486.7,4486.6,2.50124785]
[1758397418108,3.0,4486.7,4486.6,0.27238859]
[1758397418815,3.0,4486.7,4486.6,0.02328859]
[1758397419417,3.0,4486.7,4486.6,0.001]
[1758397426032,3.0,4486.7,4486.6,0.2426]
[1758397426403,3.0,4486.7,4486.6,0.001]
[1758397451038,3.0,4486.7,4486.6,0.2274]
[1758397452345,0.002,4486.8,4486.7,3.02080959]
[1758397452660,0.002,4486.8,4486.7,3.26949768]
[1758397454549,0.002,4486.8,4486.7,3.24720959]
[1758397462683,0.002,4486.8,4486.7,9.37451177]
[1758397463877,0.002,4486.8,4486.7,8.19614536]
[1758397464063,0.002,4486.8,4486.7,9.70006206]
[1758397478840,0.002,4486.8,4486.7,9.47366206]
[1758397479406,0.002,4486.8,4486.7,9.71366206]
[1758397501177,0.002,4486.8,4486.7,9.47366206]
[1758397501377,0.002,4486.8,4486.7,4.52472629]
[1758397501550,0.2292,4486.8,4486.7,3.02080959]
[1758397503622,0.2292,4486.8,4486.7,3.04309768]
[1758397503623,0.002,4486.8,4486.7,3.04309768]
[1758397505717,0.002,4486.8,4486.7,3.02080959]
[1758397516075,0.002,4486.8,4486.7,3.04309768]
[1758397516726,0.002,4486.8,4486.7,3.02080959]
[1758397519751,0.2292,4486.8,4486.7,3.02080959]
[1758397519897,0.002,4486.8,4486.7,3.02080959]
[1758397522910,0.002,4486.8,4486.7,3.04309768]
[1758397523110,0.002,4486.8,4486.7,3.02080959]
[1758397528146,0.2292,4486.8,4486.7,3.02080959]
[1758397528577,0.002,4486.8,4486.7,3.02080959]
[1758397528955,0.002,4486.8,4486.6,0.001]
[1758397529253,0.2292,4486.8,4486.7,0.792]
[1758397529450,0.002,4486.8,4486.7,0.792]
[1758397529630,0.2292,4486.8,4486.7,0.792]
[1758397529967,0.002,4486.8,4486.7,3.02080959]
[1758397545683,0.002,4486.8,4486.7,0.792]
[1758397545989,0.2292,4486.8,4486.6,0.001]
[1758397546155,0.2312,4486.8,4486.6,0.001]
[1758397546357,0.2272,4486.7,4486.6,0.793]
[1758397546749,0.002,4486.8,4486.6,0.793]
[1758397546949,0.4604,4486.8,4486.6,0.793]
[1758397547482,0.4604,4486.8,4486.6,2.22985275]
[1758397548070,0.4604,4486.8,4486.6,0.793]
[1758397549106,0.4604,4486.8,4486.6,2.22984811]
[1758397549896,0.4604,4486.8,4486.6,0.793]
[1758397550269,0.4604,4486.8,4486.6,0.001]
[1758397550470,0.4604,4486.8,4486.6,0.793]
[1758397550866,0.4604,4486.8,4486.6,0.001]
[1758397551772,0.2332,4486.8,4486.6,0.001]
[1758397552103,0.2272,4486.7,4486.6,0.001]
[1758397552482,0.2332,4486.8,4486.6,0.001]
[1758397553705,0.2332,4486.8,4486.7,2.22880959]
[1758397553913,0.2332,4486.8,4486.6,2.22984826]
[1758397554295,0.2332,4486.8,4486.6,0.001]
[1758397555028,0.2332,4486.8,4486.6,2.22984675]
[1758397555716,0.2332,4486.8,4486.6,0.001]
[1758397557318,0.2332,4486.8,4486.6,2.22985241]
[1758397564129,3.692,4486.7,4486.6,2.22985241]
[1758397566231,3.692,4486.7,4486.6,2.46015241]
[1758397569335,3.692,4486.7,4486.6,2.22985241]
[1758397600363,3.692,4486.7,4486.6,2.47395241]
[1758397600764,0.002,4486.8,4486.7,3.02080959]
[1758397600970,0.002,4486.8,4486.7,8.23850005]
[1758397601173,0.002,4486.8,4486.7,8.21621196]
[1758397606709,0.002,4486.8,4486.6,0.4737192]
[1758397606859,0.002,4486.8,4486.6,0.001]
[1758397607191,0.89935221,4486.8,4486.7,0.792]
[1758397607372,0.67215221,4486.8,4486.7,0.81428809]
[1758397612422,0.67215221,4486.8,4486.7,0.02228809]
[1758397613181,0.67215221,4486.8,4486.7,0.81428809]
[1758397615110,0.67215221,4486.8,4486.7,3.04309768]
[1758397615414,0.67215221,4486.8,4486.7,0.81428809]
[1758397616812,0.67215221,4486.8,4486.7,3.04309768]
[1758397619516,0.67215221,4486.8,4486.7,0.81428809]
[1758397620224,0.67215221,4486.8,4486.7,3.04309768]
[1758397620409,0.67215221,4486.8,4486.7,3.29129768]
[1758397620812,0.002,4486.8,4486.7,8.48277972]
[1758397621005,0.002,4486.8,4486.7,8.46049163]
[1758397624641,0.002,4486.8,4486.7,1.03217967]
[1758397624934,0.002,4486.8,4486.7,0.792]
[1758397625529,0.002,4486.8,4486.7,3.02080959]
[1758397628236,2.22880959,4486.7,4486.6,0.001]
[1758397628539,10.01085833,4486.7,4486.6,0.001]
[1758397631954,2.22890894,4486.5,4486.4,0.001]
[1758397632165,14.74796005,4486.5,4486.4,0.001]
[1758397632461,14.97426005,4486.5,4486.4,0.001]
[1758397632640,15.06365342,4486.5,4486.4,0.001]
[1758397636250,15.06273753,4486.5,4486.4,0.001]
[1758397645842,15.72788628,4486.5,4486.4,0.001]
[1758397646489,6.84728391,4486.5,4486.4,0.001]
[1758397646656,9.89361648,4486.5,4486.4,0.2417]
[1758397657418,6.19161648,4486.5,4486.4,0.2417]
[1758397657739,9.89261648,4486.5,4486.4,0.2417]
[1758397659320,6.19161648,4486.5,4486.4,0.2417]
[1758397659520,9.89261648,4486.5,4486.4,0.2417]
[1758397663401,10.22480478,4486.5,4486.4,0.2417]
[1758397667749,6.52380478,4486.5,4486.4,0.2417]
[1758397667914,10.22380478,4486.5,4486.4,0.2417]
[1758397668350,6.52380478,4486.5,4486.4,0.2417]
[1758397668649,10.2236303,4486.5,4486.4,0.2417]
[1758397672352,10.2236303,4486.5,4486.4,0.001]
[1758397673663,6.5246303,4486.5,4486.4,0.2314]
[1758397673958,10.2236303,4486.5,4486.4,0.2314]
[1758397676866,10.22387145,4486.5,4486.4,0.2314]
[1758397679169,12.15187145,4486.5,4486.4,0.2314]
[1758397680202,12.15187145,4486.5,4486.4,0.001]
[1758397682774,5.22895863,4486.4,4486.3,0.001]
[1758397682983,5.99757902,4486.4,4486.3,0.001]
[1758397683883,5.77037902,4486.4,4486.3,0.001]
[1758397684103,5.99757902,4486.4,4486.3,0.001]
[1758397684399,6.9862069,4486.4,4486.3,0.001]
[1758397684603,2.22900831,4486.3,4486.2,0.001]
[1758397684789,16.59223167,4486.3,4486.2,0.001]
[1758397684985,16.81943167,4486.3,4486.2,0.001]
[1758397685393,16.90883482,4486.3,4486.2,0.001]
[1758397690389,2.22915737,4486.0,4485.9,0.001]
[1758397690721,9.47257776,4486.0,4485.9,0.001]
[1758397691693,9.56198092,4486.0,4485.9,0.001]
[1758397696234,10.21512967,4486.0,4485.9,0.001]
[1758397700214,10.56464892,4486.0,4485.9,0.2486]
[1758397700617,10.56464892,4486.0,4485.9,0.001]
[1758397702094,10.21412967,4486.0,4485.9,0.2486]
[1758397712063,9.79153821,4486.0,4485.9,0.2486]
[1758397717878,9.79153821,4486.0,4485.9,0.001]
[1758397718349,11.72053821,4486.0,4485.9,0.001]
[1758397721706,11.80992877,4486.0,4485.9,0.001]
[1758397733086,11.80992877,4486.0,4485.9,0.2449]
[1758397734718,11.80992877,4486.0,4485.9,0.001]
[1758397739727,11.80995048,4486.0,4485.9,0.001]
[1758397740539,5.88079311,4486.0,4485.9,0.2449]
[1758397740706,9.57779311,4486.0,4485.9,0.2449]
[1758397741106,11.80695048,4486.0,4485.9,0.2449]
[1758397743143,11.80695048,4486.0,4485.9,0.001]
[1758397744112,12.13913878,4486.0,4485.9,0.001]
[1758397745735,12.36633878,4486.0,4485.9,0.001]
[1758397746218,12.68981791,4486.0,4485.9,0.001]
[1758397749136,12.46261791,4486.0,4485.9,0.001]
[1758397749925,12.68981791,4486.0,4485.9,0.001]
[1758397750250,12.46261791,4486.0,4485.9,0.001]
[1758397752058,12.68981791,4486.0,4485.9,0.001]
[1758397753059,17.41740329,4486.0,4485.9,0.001]
[1758397753351,17.64460329,4486.0,4485.9,0.001]
[1758397758764,17.41740329,4486.0,4485.9,0.001]
[1758397758947,17.64460329,4486.0,4485.9,0.001]
[1758397762073,17.41740329,4486.0,4485.9,0.001]
[1758397771832,12.46261791,4486.0,4485.9,0.001]
[1758397777620,12.13913878,4486.0,4485.9,0.2412]
[1758397778433,12.13913878,4486.0,4485.9,0.001]
[1758397784540,12.13913878,4486.0,4485.9,0.2508]
[1758397786629,12.13913663,4486.0,4485.9,0.2508]
[1758397787762,12.13913663,4486.0,4485.9,0.001]
[1758397788067,12.13713663,4486.0,4485.9,0.001]
[1758397790068,8.44213663,4486.0,4485.9,0.001]
[1758397790262,12.13713663,4486.0,4485.9,0.001]
[1758397790634,12.13713462,4486.0,4485.9,0.001]
[1758397794371,12.13713462,4486.0,4485.9,0.2508]
[1758397800298,8.44213462,4486.0,4485.9,0.001]
[1758397800595,11.80494632,4486.0,4485.9,0.2508]
[1758397801475,11.80490354,4486.0,4485.9,0.2508]
[1758397802471,11.80490354,4486.0,4485.9,0.001]
[1758397803301,11.80490354,4486.0,4485.9,0.2508]
[1758397807200,11.80490354,4486.0,4485.9,0.001]
[1758397807793,11.80490354,4486.0,4485.9,0.2283]
[1758397809698,9.57574617,4486.0,4485.9,0.2283]
[1758397809913,11.80490354,4486.0,4485.9,0.2283]
[1758397810416,9.57574617,4486.0,4485.9,0.2283]
[1758397810617,11.80490354,4486.0,4485.9,0.2283]
[1758397813523,11.80468187,4486.0,4485.9,0.2283]
[1758397816694,9.5755245,4486.0,4485.9,0.2283]
[1758397816889,11.80468187,4486.0,4485.9,0.2283]
[1758397819858,11.80468187,4486.0,4485.9,0.001]
[1758397825133,8.10968187,4486.0,4485.9,0.001]
[1758397825335,11.80368187,4486.0,4485.9,0.001]
[1758397827774,8.10968187,4486.0,4485.9,0.001]
[1758397827975,11.80368187,4486.0,4485.9,0.001]
[1758397830646,8.10968187,4486.0,4485.9,0.001]
[1758397830872,9.5745245,4486.0,4485.9,0.2336]
[1758397831052,11.80368187,4486.0,4485.9,0.2336]
[1758397833588,11.59469668,4486.0,4485.9,0.2336]
[1758397833796,11.80387222,4486.0,4485.9,0.001]
[1758397839590,11.80387222,4486.0,4485.9,0.2336]
[1758397839751,11.80387222,4486.0,4485.9,0.001]
[1758397841386,11.80387222,4486.0,4485.9,0.2336]
[1758397841561,11.80387222,4486.0,4485.9,0.001]
[1758397845186,9.57471485,4486.0,4485.9,0.2329]
[1758397845464,9.57471485,4486.0,4485.9,0.47931962]
[1758397845465,9.48532429,4486.0,4485.9,0.47931962]
[1758397845674,5.88069848,4486.0,4485.9,2.70852669]
[1758397845878,9.48532429,4486.0,4485.9,2.70852669]
[1758397846078,6.27614875,4486.0,4485.9,2.70852669]
[1758397848301,5.623,4486.0,4485.9,2.70852669]
[1758397849696,5.623,4486.0,4485.9,0.47931962]
[1758397854096,5.623,4486.0,4485.9,3.50052669]
[1758397859818,5.623,4486.0,4485.9,1.27131962]
[1758397860180,5.623,4486.0,4485.9,0.793]
[1758397864386,5.623,4486.0,4485.9,0.001]
[1758397864592,6.52050044,4486.0,4485.9,0.001]
[1758397864902,6.29330044,4486.0,4485.9,0.001]